[Event "Walton Rating Tournament 2023"]
[Site "Dhaka"]
[Date "2024.01.05"]
[Round "9.2"]
[White "Sakline Mostafa, Sajid"]
[Black "Ahmed, Sheikh Nasir"]
[Result "1-0"]
[ECO "E15"]
[WhiteElo "2110"]
[BlackElo "2193"]
[Annotator "RC"]
[PlyCount "113"]
[EventDate "2023.12.30"]
[EventType "swiss"]
[EventCountry "BAN"]
[SourceTitle "playchess.com"]
[Source "ChessBase"]
[SourceQuality "1"]
[TimeControl "5400+30"]

1. d4 {[%emt 0:00:07]} Nf6 {[%emt 0:00:20]} 2. c4 {[%emt 0:00:42]} e6 {[%emt 0:00:10]} 3. Nf3 {[%emt 0:00:05]} b6 {[%emt 0:00:22]} 4. g3 {[%emt 0:00:07]} Ba6 {[%emt 0:00:37]} 5. b3 {[%emt 0:01:04]} Bb4+ {[%emt 0:00:29]} 6. Bd2 {[%emt 0:00:16]} Be7 {[%emt 0:00:03]} 7. Bg2 {[%emt 0:01:25]} O-O {[%emt 0:00:13]} 8. O-O {[%emt 0:04:10]} d5 {[%emt 0:00:25]} 9. cxd5 {[%emt 0:03:08]} exd5 {[%emt 0:00:12]} 10. Nc3 {[%emt 0:00:33]} c5 {[%emt 0:03:31]} 11. dxc5 {[%emt 0:04:15]} bxc5 {[%emt 0:00:18]} 12. Bg5 {[%emt 0:02:18]} Bb7 {[%emt 0:12:33]} 13. Ne5 {[%emt 0:11:25]} Ne4 {[%emt 1:17:47]} 14. Nxe4 {[%emt 0:11:24]} dxe4 {[%emt 0:00:00]} 15. Qxd8 {[%emt 0:00:33]} Bxd8 {[%emt 0:00:00]} 16. Bxd8 {[%emt 0:01:16]} Rxd8 {[%emt 0:00:00]} 17. Rfd1 {[%emt 0:00:24]} Na6 {[%emt 0:00:00]} 18. Nc4 {[%emt 0:00:40]} f5 {[%emt 0:00:00]} 19. Nd6 {[%emt 0:03:29]} Bc8 {[%emt 0:00:00]} 20. Bh3 {[%emt 0:01:36]} g6 {[%emt 0:00:00]} 21. Nxe4 {[%emt 0:01:06]} Rxd1+ {[%emt 0:00:00]} 22. Rxd1 {[%emt 0:00:02]} fxe4 {[%emt 0:00:00]} 23. Rd8+ {[%emt 0:00:41]} Kg7 {[%emt 0:00:00]} 24. Bxc8 {[%emt 0:14:52]} Nb4 {[%emt 0:05:30]} 25. Rd7+ {[%emt 0:00:33]} Kf6 {[%emt 0:00:00]} 26. Bb7 {[%emt 0:01:00]} Re8 {[%emt 0:00:00]} 27. Rxh7 {[%emt 0:02:12]} Nxa2 {[%emt 0:00:00]} 28. Bc6 {[%emt 0:01:50]} Re5 {[%emt 0:00:00]} 29. Rxa7 {[%emt 0:01:47]} Nc1 {[%emt 0:00:00]} 30. Ra6 {[%emt 0:15:30]} Re6 {[%emt 0:00:00]} 31. Bb5 {[%emt 0:00:21]} Rxa6 {[%emt 0:00:00]} 32. Bxa6 {[%emt 0:00:01]} Nxb3 {[%emt 0:00:00]} 33. Kf1 {[%emt 0:02:00]} g5 {[%emt 0:00:00]} 34. Ke1 {[%emt 0:01:07]} Ke5 {[%emt 0:00:00]} 35. e3 {[%emt 0:00:42]} Kd5 {[%emt 0:00:24]} 36. Kd1 {[%emt 0:02:02]} c4 {[%emt 0:04:40]} 37. h4 {[%emt 0:02:16]} Nc5 {[%emt 0:01:26]} 38. h5 {[%emt 0:00:36]} Ke5 {[%emt 0:00:00]} 39. Bxc4 {[%emt 0:00:09]} Kf6 {[%emt 0:01:00]} 40. g4 {[%emt 0:00:44]} Nd7 {[%emt 0:00:00]} 41. Kc2 {[%emt 0:00:24]} Ne5 {[%emt 0:01:00]} 42. Be2 {[%emt 0:00:02]} Nf7 {[%emt 0:00:00]} 43. Kc3 {[%emt 0:00:13]} Ke5 {[%emt 0:00:00]} 44. Kc4 {[%emt 0:02:06]} Nh6 {[%emt 0:00:00]} 45. Kc5 {[%emt 0:00:06]} Ng8 {[%emt 0:00:44]} 46. Kc6 {[%emt 0:00:19]} Nf6 {[%emt 0:00:07]} 47. h6 {[%emt 0:00:28]} Ke6 {[%emt 0:00:58]} 48. Kc5 {[%emt 0:01:22]} Kf7 {[%emt 0:00:45]} 49. Kd6 {[%emt 0:00:34]} Kg6 {[%emt 0:00:13]} 50. Ke5 {[%emt 0:00:59]} Ng8 {[%emt 0:01:03]} 51. Kxe4 {[%emt 0:00:32]} Kxh6 {[%emt 0:00:06]} 52. Kf5 {[%emt 0:00:34]} Ne7+ {[%emt 0:00:01]} 53. Ke6 {[%emt 0:00:22]} Ng6 {[%emt 0:00:25]} 54. Kf6 {[%emt 0:00:23]} Nf8 {[%emt 0:00:38]} 55. Bb5 {[%emt 0:00:27]} Ng6 {[%emt 0:00:02]} 56. Bc6 {[%emt 0:00:24]} Nh4 {[%emt 0:00:23]} 57. f4 {[%emt 0:00:40]} 1-0

[Event "Walton Rating Tournament 2023"]
[Site "Dhaka"]
[Date "2024.01.05"]
[Round "9.3"]
[White "Zia, Tahsin Tajwar"]
[Black "Mohammad Minhaz Uddin"]
[Result "1-0"]
[ECO "E48"]
[WhiteElo "2303"]
[BlackElo "2221"]
[Annotator "RC"]
[PlyCount "65"]
[EventDate "2023.12.30"]
[EventType "swiss"]
[EventCountry "BAN"]
[SourceTitle "playchess.com"]
[Source "ChessBase"]
[SourceQuality "1"]
[TimeControl "5400+30"]

1. d4 {[%emt 0:00:05]} Nf6 {[%emt 0:00:03]} 2. c4 {[%emt 0:00:06]} e6 {[%emt 0:00:04]} 3. Nc3 {[%emt 0:00:04]} Bb4 {[%emt 0:00:14]} 4. e3 {[%emt 0:00:05]} O-O {[%emt 0:00:20]} 5. Bd3 {[%emt 0:00:06]} d5 {[%emt 0:00:04]} 6. cxd5 {[%emt 0:00:45]} exd5 {[%emt 0:00:02]} 7. a3 {[%emt 0:00:14]} Bd6 {[%emt 0:02:10]} 8. Qc2 {[%emt 0:00:14]} a6 {[%emt 0:00:20]} 9. Nge2 {[%emt 0:00:15]} Re8 {[%emt 0:05:25]} 10. Bd2 {[%emt 0:00:40]} Nbd7 {[%emt 0:09:19]} 11. f3 {[%emt 0:01:06]} c5 {[%emt 0:00:40]} 12. g4 {[%emt 0:01:28]} c4 {[%emt 0:05:16]} 13. Bf5 {[%emt 0:00:12]} g6 {[%emt 0:00:53]} 14. g5 {[%emt 0:11:21]} gxf5 {[%emt 0:12:48]} 15. gxf6 {[%emt 0:00:08]} Nxf6 {[%emt 0:00:02]} 16. O-O-O {[%emt 0:00:20]} b5 {[%emt 0:00:09]} 17. Ng3 {[%emt 0:00:51]} Qd7 {[%emt 0:16:34]} 18. Rhg1 {[%emt 0:11:00]} Kh8 {[%emt 0:00:14]} 19. e4 {[%emt 0:00:42]} dxe4 {[%emt 0:23:22]} 20. fxe4 {[%emt 0:01:24]} Bxg3 {[%emt 0:00:06]} 21. Rxg3 {[%emt 0:01:05]} Nxe4 {[%emt 0:00:09]} 22. Nxe4 {[%emt 0:07:22]} Rxe4 {[%emt 0:00:03]} 23. d5 {[%emt 0:07:18]} f6 {[%emt 0:03:53]} 24. Bc3 {[%emt 0:01:22]} Qf7 {[%emt 0:03:05]} 25. Rdg1 {[%emt 0:06:16]} Bd7 {[%emt 0:00:30]} 26. Qd2 {[%emt 0:02:32]} Rg4 {[%emt 0:04:36]} 27. Rxg4 {[%emt 0:00:56]} fxg4 {[%emt 0:00:03]} 28. Rf1 {[%emt 0:00:07]} Rf8 {[%emt 0:00:15]} 29. Qh6 {[%emt 0:03:04]} Kg8 {[%emt 0:04:11]} 30. Rxf6 {[%emt 0:00:27]} Qg7 {[%emt 0:01:17]} 31. Qxg7+ {[%emt 0:00:41]} Kxg7 {[%emt 0:00:02]} 32. Rd6+ {[%emt 0:00:06]} Kg8 {[%emt 0:00:15]} 33. Rxd7 {[%emt 0:00:07]} 1-0

[Event "Walton Rating Tournament 2023"]
[Site "Dhaka"]
[Date "2024.01.05"]
[Round "9.4"]
[White "Masum, Hossain"]
[Black "Subrota, Biswas"]
[Result "0-1"]
[ECO "A80"]
[WhiteElo "1987"]
[BlackElo "2223"]
[Annotator "RC"]
[PlyCount "70"]
[EventDate "2023.12.30"]
[EventType "swiss"]
[EventCountry "BAN"]
[SourceTitle "playchess.com"]
[Source "ChessBase"]
[SourceQuality "1"]
[TimeControl "5400+30"]

1. Nf3 {[%emt 0:00:07]} f5 {[%emt 0:00:09]} 2. b3 {[%emt 0:00:04]} d6 {[%emt 0:00:11]} 3. d4 {[%emt 0:00:16]} g6 {[%emt 0:00:23]} 4. Bb2 {[%emt 0:00:02]} Bg7 {[%emt 0:00:02]} 5. e3 {[%emt 0:00:04]} Nf6 {[%emt 0:01:04]} 6. c4 {[%emt 0:00:48]} O-O {[%emt 0:00:29]} 7. d5 {[%emt 0:00:06]} e5 {[%emt 0:01:03]} 8. dxe6 {[%emt 0:01:17]} Bxe6 {[%emt 0:00:32]} 9. Ng5 {[%emt 0:01:18]} Bc8 {[%emt 0:01:25]} 10. h4 {[%emt 0:00:41]} h6 {[%emt 0:05:12]} 11. Nh3 {[%emt 0:00:02]} Ne4 {[%emt 0:02:43]} 12. Bxg7 {[%emt 0:00:04]} Kxg7 {[%emt 0:00:02]} 13. Nf4 {[%emt 0:00:01]} Qf6 {[%emt 0:00:55]} 14. Qd4 {[%emt 0:00:01]} Qxd4 {[%emt 0:02:22]} 15. exd4 {[%emt 0:00:02]} Nc6 {[%emt 0:00:31]} 16. d5 {[%emt 0:08:08]} Nb4 {[%emt 0:01:18]} 17. Bd3 {[%emt 0:00:02]} Re8 {[%emt 0:08:19]} 18. Kf1 {[%emt 0:01:49]} Nc5 {[%emt 0:02:16]} 19. Rh3 {[%emt 0:08:00]} Ncxd3 {[%emt 0:04:41]} 20. Rxd3 {[%emt 0:00:58]} Nc2 {[%emt 0:04:34]} 21. Rd1 {[%emt 0:00:01]} Nxa1 {[%emt 0:02:07]} 22. Na3 {[%emt 0:00:01]} Re4 {[%emt 0:01:35]} 23. g3 {[%emt 0:01:06]} Nxb3 {[%emt 0:02:23]} 24. axb3 {[%emt 0:00:02]} g5 {[%emt 0:00:44]} 25. hxg5 {[%emt 0:00:02]} hxg5 {[%emt 0:00:01]} 26. Nh3 {[%emt 0:00:01]} Kf6 {[%emt 0:00:56]} 27. Nb5 {[%emt 0:00:07]} f4 {[%emt 0:00:21]} 28. Ng1 {[%emt 0:00:32]} Bd7 {[%emt 0:00:34]} 29. Nc3 {[%emt 0:04:27]} Re5 {[%emt 0:03:01]} 30. gxf4 {[%emt 0:00:08]} gxf4 {[%emt 0:00:07]} 31. Rd4 {[%emt 0:00:05]} Rg8 {[%emt 0:01:57]} 32. Rxf4+ {[%emt 0:00:15]} Ke7 {[%emt 0:00:23]} 33. Rh4 {[%emt 0:01:01]} Kd8 {[%emt 0:02:45]} 34. f4 {[%emt 0:02:28]} Re3 {[%emt 0:00:06]} 35. Nd1 {[%emt 0:00:31]} Rxb3 {[%emt 0:00:53]} 0-1

[Event "Walton Rating Tournament 2023"]
[Site "Dhaka"]
[Date "2024.01.05"]
[Round "9.6"]
[White "Mehdi Hasan Parag"]
[Black "Sujan"]
[Result "1-0"]
[ECO "B80"]
[WhiteElo "2171"]
[BlackElo "1952"]
[Annotator "RC"]
[PlyCount "45"]
[EventDate "2023.12.30"]
[EventType "swiss"]
[EventCountry "BAN"]
[SourceTitle "playchess.com"]
[Source "ChessBase"]
[SourceQuality "1"]
[TimeControl "5400+30"]

1. e4 {[%emt 0:00:04]} c5 {[%emt 0:06:05]} 2. Nf3 {[%emt 0:00:11]} d6 {[%emt 0:00:29]} 3. d4 {[%emt 0:00:04]} cxd4 {[%emt 0:00:40]} 4. Nxd4 {[%emt 0:00:10]} Nf6 {[%emt 0:00:22]} 5. Nc3 {[%emt 0:00:04]} a6 {[%emt 0:00:01]} 6. Be3 {[%emt 0:00:27]} Nc6 {[%emt 0:01:48]} 7. f3 {[%emt 0:00:32]} e6 {[%emt 0:02:33]} 8. Qd2 {[%emt 0:02:18]} Be7 {[%emt 0:04:18]} 9. g4 {[%emt 0:00:44]} Nxd4 {[%emt 0:18:08]} 10. Qxd4 {[%emt 0:00:49]} Nd7 {[%emt 0:14:32]} 11. Qxg7 {[%emt 0:04:47]} Bh4+ {[%emt 0:01:06]} 12. Kd2 {[%emt 0:00:39]} Bf6 {[%emt 0:01:02]} 13. Qh6 {[%emt 0:00:11]} d5 {[%emt 0:03:27]} 14. exd5 {[%emt 0:01:53]} exd5 {[%emt 0:08:20]} 15. Re1 {[%emt 0:01:06]} Ne5 {[%emt 0:03:11]} 16. Bf4 {[%emt 0:03:57]} d4 {[%emt 0:08:34]} 17. Nd5 {[%emt 0:01:51]} Qa5+ {[%emt 0:04:39]} 18. b4 {[%emt 0:01:04]} Qxd5 {[%emt 0:03:24]} 19. Qxf6 {[%emt 0:00:09]} Be6 {[%emt 0:00:52]} 20. Qxh8+ {[%emt 0:00:28]} Ke7 {[%emt 0:01:09]} 21. Qxe5 {[%emt 0:00:12]} Qxf3 {[%emt 0:00:51]} 22. Qd6+ {[%emt 0:00:46]} Ke8 {[%emt 0:01:11]} 23. Bd3 {[%emt 0:02:17]} 1-0